Workbook

Sheet INFO
B2: This spreadsheet:
B3: This spreadsheet is part of a series, to support the implementation and use of the set of (CEN, ISO) EPB standards
B4: (see below)
B6: Main related standard(s): | C6: EN 16798-9:2017, Energy performance of buildings — Part 09: Ventilation for buildings — Module M4-1, M4-4, M4-9 — Calculation methods for energy requirements — Calculation methods for energy requirements of cooling systems — General
B8: Spreadsheet created by: | C8: Gerhard Zweifel (EPB Center expert)
B11: Contact: | C11: https://epb.center/contact/
B13: Date: | C13: 2021-07-14
C14: Replaces file: Demo_FprEN_16798-9_Simple_2016-03-07.xlsm. Date: 2016-03-07
B16: Detailed info: | C16: See sheet "Explanation"
B18: The series of spreadsheets to support the implementation and use of the set of EPB standards:
B20: EPB spreadsheets: | C20: This spreadsheet is part of a series of spreadsheets to support the implementation and use of the set of (CEN, ISO) EPB standards
C21: Each of these spreadsheets complies with a specific template and follows specific rules
B23: Main purpose: | C23: The main purpose of these EPB spreadsheets is to support the implementation and use of the standards.
C24: They aim to demonstrate the validity of the calculation procedures and the required input and provided output data defined in the standard.
C25: They support the expert user of the standards, in particular those who want to review the content of the standard and those who want to translate the standard into software, to understand the correct interpretation of the formulae and calculation steps in the standard, or e.g. to explore the sensitivity for variations in input values.
C26: Some spreadsheets have been further developed to include more advanced features or to become more user friendly (see sheet "Explanation")
B28: Limitations: | C28: In general, these spreadsheets do not cover the full range of calculation options that are possible according to the standard to which it applies. This concerns e.g. the number of instances of a variable, the number of time intervals and/or special calculation cases.
C29: These spreadsheets cover only a single or a cluster of EPB standards and are not meant to perform a full energy performance calculation.
C30: Note also that these spreadsheets are mainly intended for testing and demonstration and therefore not aiming to be user friendly or to be protected against wrong or improper use.
C31: The spreadsheets related to the EPB standards are provided to demonstrate specific elements of the calculation procedures in the relevant standard(s). Consequently, they do not replace the EPB standards, but they shall be used along with the EPB standards.
B33: Responsible: | C33: In general, the preparation of the spreadsheet is a collective process in which several experts (including main developers of the standard) are involved
C34: See "Background" below for information on the first versions of (most of) these spreadsheets
B36: Acknowledgement: | C36: The EPB spreadsheets produced or upgraded after 2018 have been prepared under a contract with the European Union, represented by the European Commission (Service contract ENER/C3/2017-437/SI2-785.185). Start: 21 September 2018 for 3 years. See "Background" for information on previous (2012-2017) versions of many of these spreadsheets
B38: Disclaimer: | C38: Although these spreadsheets have been developed with care, neither the authors or contributors warrant that the calculations and procedures in this spreadsheet are free of errors. The EPB Center expressly disclaims any liability or responsibility arising from use of this spreadsheet, or any consequences thereof. Any responsibility arising from the use of this spreadsheet lies with the user.
C39: The information and views set out in this document are those of the author(s) and do not necessarily reflect the official opinion of the European Union. Neither the European Union institutions and bodies nor any person acting on their behalf may be held responsible for the use which may be made of the information contained therein.
B41: Terms of use: | C41: The user is not allowed to redistribute a modified version of this spreadsheet.
C42: The author(s) would appreciate your feed back on the spreadsheet (see Contact above)
B44: More information: | C44: www.epb.center
B46: Background: | C46: First published versions of these spreadsheets were developed during 2012-2017, in the framework of the preparation and revision of the set of EN or ISO standards on the energy performance of buildings, to support the European "Energy Performance of Buildings Directive" recast 2010, under Mandate M/480 of the European Commission to CEN.
C47: These first versions were meant for use by CEN and ISO Technical Committee(s) and the Working Group(s) working on the preparation or revision of the EPB-standard to which this spreadsheet applies.
C48: These first public versions of the spreadsheets were mainly intended to support checking that all formulae in the standard under development were consistent and could be linked with other relevant (EPB) standards.
C49: Many of these spreadsheets have been developed parallel to the preparation of the set of EPB standards under the M/480 mandate from the European Commission (2012 - 2017) and do not necessarily reflect the final status of the standard.
C50: More information:
C51: https://epb.center/epb-standards/background/

Sheet Explanation
B2: EPB standard: | C2: EN 16798-9:2017 | D2: Energy performance of buildings — Part 09: Ventilation for buildings — Module M4-1, M4-4, M4-9 — Calculation methods for energy requirements — Calculation methods for energy requirements of cooling systems — General
B3: Responsible in ISO and/or CEN: | D3: CEN/TC 156 WG 21
B6: Convention: | C6: Font colors and/or cell shading on calculation sheet(s):
C7: orange shading | D7: calculated with corrected formula or changes in input/output
B14: Run: | C14: Only necessary for Series calculations, see top of sheet "Output_series"
B16: Status: | C16: published
B18: Main features: | C18: This spreadsheet comprises the implementation of the simplified calculation for the general part of cooling systems
C19: All option choices are implemented and functional
B26: Time intervals and period: | C26: This hourly calculation covers one instance of an hourly calculation (sheet "Method_calculation"); the series calculation currently comprises one typical winter day and one typical summer day; this can be expanded
B28: Main limitations: | C28: Since the method as described in the standard covers an undefined, unlimited number of elements,
C29: such as thermal zones, emitters and air handling units, the spreadsheet had to be restricted to a limited number of these.
C30: This limitation is, according to the schematics in CEN/TR 16798-10, figure 3,
C31: to a max. of 4 thermal zones and emitters, and of 2 air handling units.
C32: Some data on "really provided" energy in the sheet "Input_series" are supposed to come from other modules;
C33: They are assumed to be equal to the "required" values and therefore linked to the "Output_series" sheet
C34: -> this requires the series calculation to be run 2 times, to allow for the update of the "Input_series" sheet
B36: Protection: | C36: --
B38: Why a macro? | C38: Macros are only needed for the series calculation
B40: More information: | C40: CEN/TR 16798-10, Energy performance of buildings
C41: — Part 10: Ventilation for buildings
C42: — Methods for the calculation of the energy performance of cooling systems — General
C43: — Technical report — Interpretation of the requirements in EN 16798-9 — Modules M4-1, M4-4, M4-9
C44: Published 2017
B46: Links: | C46: https://epb.center/documents/en-16798-9/
C47: includes also links to published articles and more
C48: https://epb.center/documents/centr-16798-10/
B50: Overview of the meaning of each sheet in this file
B51: Sheet | D51: Description | E51: Tab colour coding is used to facilitate navigation:
B52: INFO | D52: Common info for all EPB spreadsheets, including DISCLAIMER | E52: Red tab colour (do not touch) for INFO, Explanation and History
B53: Explanation | D53: Explanation on this spreadsheet
B54: Product_tech_data | D54: Product related properties calculations
B55: System_configuration | D55: Option choices based on drop down menus
B56: Input_series | D56: Time series of input data sets
B57: Method_input | D57: Tabulated overview of all input data, according to common template for all EPB spreadsheets | E57: Green tab colour for Method_input/calculation/output
B58: Method_calculation | D58: Step-by-step calculation, according to common template for all EPB spreadsheets. But see ATTENTION above
B59: Method_output | D59: Tabulated overview of all output data, according to common template for all EPB spreadsheets
B60: Output_series | D60: Time series of results
B61: Graphs | D61: Graphical output based on Output_series
B64: History of this spreadsheet
B65: Date | C65: Developer | D65: Description
B67: 2016-03-07 | C67: G. Zweifel | D67: Adjustment to last FV standard version; DX_CLG_DIS_TYPE option added, formula (5) separated, published
B68: 2021-07-14 | C68: G. Zweifel | D68: Adapted to the final version of the standard; adapted to the epb.center format; published

Sheet Process_design_data
A1: Example of process design data. In a simple structure, this can be connected directly to the "method_input" sheet where this data is required. In this example spreadsheet the "Method input" is linked to the detailed input.
A6: Process design data (qualitative)
A8: System type
A9: 2 | C9: =INDEX(C11:C12,A9) -> DX
A11: Water based system | C11: Water
A12: Direct expansion system | C12: DX
A15: Emitter type
A16: 2 | B16: DX_CLG_DIS_TYPE | C16: =INDEX(C18:C20,A16) -> AIR_BASED
A18: zone based emitters | C18: ZONE_BASED
A19: air based distribution | C19: AIR_BASED
A22: Control of the cooling generation outlet temperature
A23: 2 | B23: CLG_GEN_TMP_CTRL | C23: =INDEX(C25:C26,A23) -> VARIABLE
A25: Constant temperature in the cooling generation plant | C25: CONST
A26: Variable temperature in the cooling generation plant | C26: VARIABLE
A29: Control of the chilled water flow temperature of the total distribution system
A30: 2 | B30: CLG_DISTR_TMP_CTRL | C30: =INDEX(C32:C33,A30) -> ODA_COMP
A32: constant supply temperature | C32: CONST
A33: Variable set point with outdoor temperature compensation | C33: ODA_COMP

Sheet Input_series
A1: Load here the value of input variables for each time-step (time series) Set the number of input data for each time steps and the number of time step before running The macro from sheet "Output series". Local constant data may be input via the sheets "Constants"
A3: Time series for data input
A4: Settings
A5: Number of input data | F5: 24
A6: Number of input data to transfer | F6: 24
A7: Number of first time step | F7: =+Time_step_first -> 1 | G7: <-- This value is set in the "output_series" sheet
A8: Number of time steps | F8: =+TIME_STEPS_COUNT -> 12 | G8: <-- This value is set in the "output_series" sheet
A9: Last time step | F9: =+F7+TIME_STEPS_COUNT-1 -> 12
A10: Single step mode: does only this step if value ≠ 0 | F10: 0
A12: Description | B12: Month | C12: Day of month | D12: Hour of day | E12: Calculation time interval | F12: Ambient air temperature | G12: Sensible energy need for cooling in thermal zone j=1 | H12: Sensible energy need for cooling in thermal zone j=2 | I12: Sensible energy need for cooling in thermal zone j=3 | J12: Sensible energy need for cooling in thermal zone j=4 | K12: Required AHU cooling coil output for ventilation system k=1 | L12: Required AHU cooling coil output for ventilation system k=2 | M12: Required cooling air supply temperature | N12: Heat losses of cooling emission in thermal zone j=1 | O12: Heat losses of cooling emission in thermal zone j=2 | P12: Heat losses of cooling emission in thermal zone j=3 | Q12: Heat losses of cooling emission in thermal zone j=4 | R12: Auxiliary energy for cooling emission system in thermal zone j=1 | S12: Auxiliary energy for cooling emission system in thermal zone j=2 | T12: Auxiliary energy for cooling emission system in thermal zone j=3 | U12: Auxiliary energy for cooling emission system in thermal zone j=4 | V12: Portion of cooling distribution auxiliary energy going to the chilled water for distribution system | W12: Equivalent internal temperature | X12: Cooling energy extracted by the cooling generation system | Y12: Chilled water outlet temperature from the cooling generation | Z12: Electric energy input to the cooling generation system | AA12: Heat input to the absorption cooling generation | AB12: Auxiliary energy for cooling generation system
A13: Symbol | E13: tc,i | F13: ϑe | G13: QC;nd;zt;j | H13: QC;nd;zt;j | I13: QC;nd;zt;j;i | J13: QC;nd;zt;j;i | K13: QC;ahu,k;out;req;i | L13: QC;ahu,k;out;req;i | M13: JSUP;C;req | N13: QC;em,ls;zt,j | O13: QC;em,ls;zt,j | P13: QC;em,ls;zt,j | Q13: QC;em,ls;zt,j | R13: WC;aux;em;j | S13: WC;aux;em;j | T13: WC;aux;em;j | U13: WC;aux;em;j | V13: fwat;C;dis;aux | W13: Jint;inc | X13: QC;gen;in | Y13: ϑC;gen;out | Z13: EC,gen,el;in | AA13: QH;C;gen;abs;in | AB13: WC;aux;gen
A14: Unit | E14: h | F14: °C | G14: kWh | H14: kWh | I14: kWh | J14: kWh | K14: kWh | L14: kWh | M14: °C | N14: kWh | O14: kWh | P14: kWh | Q14: kWh | R14: kWh | S14: kWh | T14: kWh | U14: kWh | V14: - | W14: °C | X14: kWh | Y14: °C | Z14: kWh | AA14: kWh | AB14: kWh
A15: Origin | E15: M1-9 | F15: M1-13 | G15: M2-2 | H15: M2-2 | I15: M2-2 | J15: M2-2 | K15: M5-8 | L15: M5-8 | M15: M5-8 | N15: M4-5 | O15: M4-5 | P15: M4-5 | Q15: M4-5 | R15: M4-5 | S15: M4-5 | T15: M4-5 | U15: M4-5 | V15: M4-6 | W15: M4-5 | X15: M4-8 | Y15: M4-8 | Z15: M4-8 | AA15: M4-8 | AB15: M4-8
X16: =SUM(X18:X1017) -> 620.2425144 | AA16: =SUM(AA18:AA1017) -> 0
A17: Time stamp | F17: VALUES
A18: 1 | B18: 1 | E18: =31*24 -> 744 | F18: 0.5 | G18: 0 | H18: 0 | I18: 0 | J18: 0 | K18: 0 | L18: 0 | M18: 16 | N18: =0.05*G18 -> 0 | O18: =0.05*H18 -> 0 | P18: =0.05*I18 -> 0 | Q18: =0.05*J18 -> 0 | R18: =0.01*G18 -> 0 | S18: =0.01*H18 -> 0 | T18: =0.01*I18 -> 0 | U18: =0.01*J18 -> 0 | V18: 0.5 | W18: 24 | X18: =Output_series!N22 -> 0 | Y18: =Output_series!M22 -> 0.5 | Z18: =X18/4 -> 0 | AA18: 0 | AB18: 0
A19: 2 | B19: 2 | E19: =28*24 -> 672 | F19: 1.8 | G19: 0 | H19: 0 | I19: 0 | J19: 0 | K19: 0 | L19: 0 | M19: 16 | N19: 0 | O19: 0 | P19: 0 | Q19: 0 | R19: 0 | S19: 0 | T19: 0 | U19: 0 | V19: 0.5 | W19: 24 | X19: =Output_series!N23 -> 0 | Y19: =Output_series!M23 -> 0.5 | Z19: =X19/4 -> 0 | AA19: 0 | AB19: 0
A20: 3 | B20: 3 | E20: =31*24 -> 744 | F20: 5.7 | G20: 0 | H20: 0 | I20: 0 | J20: 0 | K20: 0 | L20: 0 | M20: 16 | N20: 0 | O20: 0 | P20: 0 | Q20: 0 | R20: 0 | S20: 0 | T20: 0 | U20: 0 | V20: 0.5 | W20: 24 | X20: =Output_series!N24 -> 0 | Y20: =Output_series!M24 -> 0.5 | Z20: 0 | AA20: 0 | AB20: 0
A21: 4 | B21: 4 | E21: =30*24 -> 720 | F21: 8.8 | G21: 0 | H21: 0 | I21: 0 | J21: 0 | K21: 0 | L21: 0 | M21: 16 | N21: 0 | O21: 0 | P21: 0 | Q21: 0 | R21: 0 | S21: 0 | T21: 0 | U21: 0 | V21: 0.5 | W21: 24 | X21: =Output_series!N25 -> 0 | Y21: =Output_series!M25 -> 0.5 | Z21: 0 | AA21: 0 | AB21: 0
A22: 5 | B22: 5 | E22: =31*24 -> 744 | F22: 13.9 | G22: 0.41858804 | H22: 0 | I22: 0.362576596 | J22: 0 | K22: 0 | L22: 0 | M22: 16 | N22: 0.020929402 | O22: 0 | P22: 0.0181288298 | Q22: 0 | R22: 0.0041858804 | S22: 0 | T22: 0.00362576596 | U22: 0 | V22: 0.5 | W22: 25 | X22: =Output_series!N26 -> 0.8202228678 | Y22: =Output_series!M26 -> 0.5 | Z22: 0.2050557169 | AA22: 0 | AB22: 0
A23: 6 | B23: 6 | E23: =30*24 -> 720 | F23: 16.7 | G23: 110.977554 | H23: 16.32389642 | I23: 92.40697975 | J23: 11.59143043 | K23: 0 | L23: 0 | M23: 16 | N23: 5.548877698 | O23: 0.816194821 | P23: 4.620348987 | Q23: 0.5795715214 | R23: 1.10977554 | S23: 0.1632389642 | T23: 0.9240697975 | U23: 0.1159143043 | V23: 0.5 | W23: 26 | X23: =Output_series!N27 -> 242.8648536 | Y23: =Output_series!M27 -> 0.5 | Z23: 60.71621339 | AA23: 0 | AB23: 0
A24: 7 | B24: 7 | E24: =31*24 -> 744 | F24: 19 | G24: 72.81108018 | H24: 25.59998586 | I24: 66.13036914 | J24: 22.00563783 | K24: 0 | L24: 0 | M24: 16 | N24: 3.640554009 | O24: 1.279999293 | P24: 3.306518457 | Q24: 1.100281891 | R24: 0.7281108018 | S24: 0.2559998586 | T24: 0.6613036914 | U24: 0.2200563783 | V24: 0.5 | W24: 26 | X24: =Output_series!N28 -> 195.8744267 | Y24: =Output_series!M28 -> 0.5 | Z24: 48.96860666 | AA24: 0 | AB24: 0
A25: 8 | B25: 8 | E25: =31*24 -> 744 | F25: 18.8 | G25: 67.42157092 | H25: 26.24690338 | I25: 54.60177164 | J25: 20.02640116 | K25: 0 | L25: 0 | M25: 16 | N25: 3.371078546 | O25: 1.312345169 | P25: 2.730088582 | Q25: 1.001320058 | R25: 0.6742157092 | S25: 0.2624690338 | T25: 0.5460177164 | U25: 0.2002640116 | V25: 0.5 | W25: 26 | X25: =Output_series!N29 -> 176.7114795 | Y25: =Output_series!M29 -> 0.5 | Z25: 44.17786987 | AA25: 0 | AB25: 0
A26: 9 | B26: 9 | E26: =30*24 -> 720 | F26: 14.4 | G26: 1.868553972 | H26: 0 | I26: 1.91385731 | J26: 0 | K26: 0 | L26: 0 | M26: 16 | N26: 0.0934276986 | O26: 0 | P26: 0.0956928655 | Q26: 0 | R26: 0.01868553972 | S26: 0 | T26: 0.0191385731 | U26: 0 | V26: 0.5 | W26: 25 | X26: =Output_series!N30 -> 3.971531846 | Y26: =Output_series!M30 -> 0.5 | Z26: 0.9928829615 | AA26: 0 | AB26: 0
A27: 10 | B27: 10 | E27: =31*24 -> 744 | F27: 10.2 | G27: 0 | H27: 0 | I27: 0 | J27: 0 | K27: 0 | L27: 0 | M27: 16 | N27: 0 | O27: 0 | P27: 0 | Q27: 0 | R27: 0 | S27: 0 | T27: 0 | U27: 0 | V27: 0.5 | W27: 24 | X27: =Output_series!N31 -> 0 | Y27: =Output_series!M31 -> 0.5 | Z27: 0 | AA27: 0 | AB27: 0
A28: 11 | B28: 11 | E28: =30*24 -> 720 | F28: 4.5 | G28: 0 | H28: 0 | I28: 0 | J28: 0 | K28: 0 | L28: 0 | M28: 16 | N28: 0 | O28: 0 | P28: 0 | Q28: 0 | R28: 0 | S28: 0 | T28: 0 | U28: 0 | V28: 0.5 | W28: 24 | X28: =Output_series!N32 -> 0 | Y28: =Output_series!M32 -> 0.5 | Z28: 0 | AA28: 0 | AB28: 0
A29: 12 | B29: 12 | E29: =31*24 -> 744 | F29: 2 | G29: 0 | H29: 0 | I29: 0 | J29: 0 | K29: 0 | L29: 0 | M29: 16 | N29: 0 | O29: 0 | P29: 0 | Q29: 0 | R29: 0 | S29: 0 | T29: 0 | U29: 0 | V29: 0.5 | W29: 24 | X29: =Output_series!N33 -> 0 | Y29: =Output_series!M33 -> 0.5 | Z29: 0 | AA29: 0 | AB29: 0
A30: 13
A31: 14
A32: 15
A33: 16
A34: 17
A35: 18
A36: 19
A37: 20
A38: 21
A39: 22
A40: 23
A41: 24
A42: 25
A43: 26
A44: 27
A45: 28
A46: 29
A47: 30
A48: 31
A49: 32
A50: 33
A51: 34
A52: 35
A53: 36
A54: 37
A55: 38
A56: 39
A57: 40
A58: 41
A59: 42
A60: 43
A61: 44
A62: 45
A63: 46
A64: 47
A65: 48
A66: 49
A67: 50
A68: 51
A69: 52
A70: 53
A71: 54
A72: 55
A73: 56
A74: 57
A75: 58
A76: 59
A77: 60
A78: 61
A79: 62
A80: 63
A81: 64
A82: 65
A83: 66
A84: 67
A85: 68
A86: 69
A87: 70
A88: 71
A89: 72
A90: 73
A91: 74
A92: 75
A93: 76
A94: 77
A95: 78
A96: 79
A97: 80
A98: 81
A99: 82
A100: 83
A101: 84
A102: 85
A103: 86
A104: 87
A105: 88
A106: 89
A107: 90
A108: 91
A109: 92
A110: 93
A111: 94
A112: 95
A113: 96
A114: 97
A115: 98
A116: 99
A117: 100
A118: 101
A119: 102
A120: 103
A121: 104
A122: 105
A123: 106
A124: 107
A125: 108
A126: 109
A127: 110
A128: 111
A129: 112
A130: 113
A131: 114
A132: 115
A133: 116
A134: 117
A135: 118
A136: 119
A137: 120
A138: 121
A139: 122
A140: 123
A141: 124
A142: 125
A143: 126
A144: 127
A145: 128
A146: 129
A147: 130
A148: 131
A149: 132
A150: 133
A151: 134
A152: 135
A153: 136
A154: 137
A155: 138
A156: 139
A157: 140
A158: 141
A159: 142
A160: 143
A161: 144
A162: 145
A163: 146
A164: 147
A165: 148
A166: 149
A167: 150
A168: 151
A169: 152
A170: 153
A171: 154
A172: 155
A173: 156
A174: 157
A175: 158
A176: 159
A177: 160
A178: 161
A179: 162
A180: 163
A181: 164
A182: 165
A183: 166
A184: 167
A185: 168
A186: 169
A187: 170
A188: 171
A189: 172
A190: 173
A191: 174
A192: 175
A193: 176
A194: 177
A195: 178
A196: 179
A197: 180
A198: 181
A199: 182
A200: 183
A201: 184
A202: 185
... 9815 more rows

Sheet Method_input
A1: THIS IS A MANDATORY SHEET All input data for the method shall be listed here. In the simplest version, values for data input in column D (both green and blue background) may be inserted manually. Varying data (green background) can be fed from the "input_series" sheet. In this sample data sheet, product data (blue background) is linked to a sample catalogue built in the "Detailed_input" sheet
B3: Time step to be loaded | D3: 8
A6: Name | B6: Symbol | C6: Unit | D6: Values | E6: Origin | F6: Varying | G6: Notes
A7: Operating conditions data
A8: Calculation time interval | B8: tc,i | C8: h | D8: 744 | E8: M1-9 | F8: No
A9: Ambient air temperature | B9: ϑe | C9: °C | D9: 18.8 | E9: M1-13 | F9: Yes
A10: Sensible energy need for cooling in thermal zone j=1 | B10: QC;nd;zt;j | C10: kWh | D10: 67.42157092 | E10: M2-2 | F10: Yes
A11: Sensible energy need for cooling in thermal zone j=2 | B11: QC;nd;zt;j | C11: kWh | D11: 26.24690338 | E11: M2-2 | F11: Yes
A12: Sensible energy need for cooling in thermal zone j=3 | B12: QC;nd;zt;j;i | C12: kWh | D12: 54.60177164 | E12: M2-2 | F12: Yes
A13: Sensible energy need for cooling in thermal zone j=4 | B13: QC;nd;zt;j;i | C13: kWh | D13: 20.02640116 | E13: M2-2 | F13: Yes
A14: Required AHU cooling coil output for ventilation system k=1 | B14: QC;ahu,k;out;req;i | C14: kWh | D14: 0 | E14: M5-8 | F14: yes
A15: Required AHU cooling coil output for ventilation system k=2 | B15: QC;ahu,k;out;req;i | C15: kWh | D15: 0 | E15: M5-8 | F15: yes
A16: Required cooling air supply temperature | B16: JSUP;C;req | C16: °C | D16: 16 | E16: M5-8 | F16: yes
A17: Heat losses of cooling emission in thermal zone j=1 | B17: QC;em,ls;zt,j | C17: kWh | D17: 3.371078546 | E17: M4-5 | F17: yes
A18: Heat losses of cooling emission in thermal zone j=2 | B18: QC;em,ls;zt,j | C18: kWh | D18: 1.312345169 | E18: M4-5 | F18: yes
A19: Heat losses of cooling emission in thermal zone j=3 | B19: QC;em,ls;zt,j | C19: kWh | D19: 2.730088582 | E19: M4-5 | F19: yes
A20: Heat losses of cooling emission in thermal zone j=4 | B20: QC;em,ls;zt,j | C20: kWh | D20: 1.001320058 | E20: M4-5 | F20: yes
A21: Auxiliary energy for cooling emission system in thermal zone j=1 | B21: WC;aux;em;j | C21: kWh | D21: 0.6742157092 | E21: M4-5 | F21: yes
A22: Auxiliary energy for cooling emission system in thermal zone j=2 | B22: WC;aux;em;j | C22: kWh | D22: 0.2624690338 | E22: M4-5 | F22: yes
A23: Auxiliary energy for cooling emission system in thermal zone j=3 | B23: WC;aux;em;j | C23: kWh | D23: 0.5460177164 | E23: M4-5 | F23: yes
A24: Auxiliary energy for cooling emission system in thermal zone j=4 | B24: WC;aux;em;j | C24: kWh | D24: 0.2002640116 | E24: M4-5 | F24: yes
A25: Equivalent internal temperature | B25: Jint;inc | C25: °C | D25: 0.5 | E25: M4-5 | F25: yes
A26: Portion of cooling distribution auxiliary energy going to the chilled water for distribution system | B26: fwat;C;dis;aux | C26: - | D26: 26 | E26: M4-6 | F26: yes
A27: Cooling energy extracted by the cooling generation system | B27: QC;gen;in | C27: kWh | D27: 176.7114795 | E27: M4-8 | F27: yes
A28: Chilled water outlet temperature from the cooling generation | B28: ϑC;gen;out | C28: °C | D28: 0.5 | E28: M4-8 | F28: yes
A29: Electric energy input to the cooling generation system | B29: EC,gen,el;in | C29: kWh | D29: 44.17786987 | E29: M4-8 | F29: yes
A30: Heat input to the absorption cooling generation | B30: QH;C;gen;abs;in | C30: kWh | D30: 0 | E30: M4-8 | F30: yes
A31: Auxiliary energy for cooling generation system | B31: WC;aux;gen | C31: kWh | D31: 0 | E31: M4-8 | F31: Yes
A33: System design data
A34: Process design
A35: Cooling generation outlet temperature setpoint | B35: ϑC;gen;out;set | C35: °C | D35: 6 | E35: local
A36: Inlet temperature setpoint of the total distribution system for CONST control option | B36: ϑC;dis;flw;set | C36: °C | D36: 8 | E36: local | G36: Variable added
A37: Maximum inlet temperature setpoint of the total distribution system for ODA_COMP control option | B37: ϑC;dis;flw;set;max | C37: °C | D37: 16 | E37: local
A38: Minimum inlet temperature setpoint of the total distribution system for ODA_COMP control option | B38: ϑC;dis;flw;set;min | C38: °C | D38: 8 | E38: local
A39: Slope factor of the total distribution system for ODA_COMP control option | B39: fe | C39: - | D39: -0.8 | E39: local
A40: Temperature offset of the total distribution system for ODA_COMP control option | B40: DJoff | C40: K | D40: 28 | E40: local
A41: Factor for the cooling distribution losses (simplified calculation) | B41: fC;ls;dis | C41: - | D41: 0.1 | E41: local
A42: Factor for the cooling distribution auxiliary energy (simplified calculation) | B42: fC;aux;dis | C42: - | D42: 0.01 | E42: local
A43: Weighting factor for thermal energy | B43: fW;th | C43: - | D43: 1 | E43: local
A44: Weighting factor for electric energy | B44: fW;el | C44: - | D44: 1 | E44: local
A46: Control type data
A47: Control of the cooling generation outlet temperature | B47: CLG_GEN_TMP_CTRL | D47: =Process_design_data!C23 -> VARIABLE
A48: Control of the chilled water flow temperature of the total distribution system | B48: CLG_DISTR_TMP_CTRL | D48: =Process_design_data!C30 -> ODA_COMP
A50: Constants
A51: Density of water | B51: rwat | C51: kg/m3 | D51: 1000
A52: Specific heat of water | B52: cwat | C52: kWh/kg K | D52: 0.00116

Sheet Method_calculation
A1: THIS IS A MANDATORY SHEET One time step calculation shall be described here. For each calculation step (= 1 row) data for the formula in column D shall be taken from the "Method_input" sheet or previous calculation steps. Include in the column "Formula ref" its number in the standard text. The example is based on EN 15316-4-1:2008 Copy and paste a copy of the equation into column "Formula" Use the column note for information on the calculation
A3: Description | B3: Symbol | C3: Unit | D3: Value | E3: Formula ref | F3: Formula | G3: Notes
A4: Operation conditions calculations
A5: DX systems
A6: Required generation outlet temperature for zone based emitters | B6: JC,gen;out;req | C6: °C | D6: =IF(AND(Process_design_data!C9="DX",Process_design_data!C16="ZONE_BASED"),Method_input!D25,"-") -> - | E6: Formula (1) | F6: JC,gen;out;req = JC;int;inc | G6: Method output | H6: Reference corrected
A7: Required generation outlet temperature for air system based distribution | B7: JC,gen;out;req | C7: °C | D7: =IF(AND(Process_design_data!C9="DX",Process_design_data!C16="AIR_BASED"),Method_input!D16,"-") -> 16 | E7: Formula (2) | F7: JC,gen;out;req = JSUP;C;req | G7: Method output | H7: Reference corrected
A8: Water based systems
A9: Required generation outlet temperature if CLG_GEN_TMP_CTRL = CONST | B9: JC,gen;out;req | C9: °C | D9: =IF(AND(Process_design_data!C9="Water",Method_input!D47="CONST"),Method_input!D35,"-") -> - | E9: Formula (3) | F9: JC,gen;out;req = JC;gen;out;set | G9: Method output | H9: Reference corrected
A10: Required generation outlet temperature else | B10: JC,gen;out;req | C10: °C | D10: =IF(AND(Process_design_data!C9="Water",Method_input!D47="VARIABLE"),IF(D12<>"-",D12,D13),"-") -> - | E10: Formula (4) | F10: JC,gen;out;req = JC;dis;in;flw;req | G10: Method output | H10: Reference corrected
A11: Simplified Method
A12: Required inlet temperature of the total distribution system if CLG_DISTR_TMP_CTRL = CONST | B12: ϑC;dis;in;flw;req | C12: °C | D12: =IF(Method_input!D48="CONST",Method_input!D36,"-") -> - | E12: Formula (5) | F12: ϑC;dis;in;flw;req = ϑC;dis;flw;set | H12: Reference corrected
A13: required inlet temperature of the total distribution system if CLG_DISTR_TMP_CTRL = ODA_COMP | B13: ϑC;dis;in;flw;req | C13: °C | D13: =IF(Method_input!D48="ODA_COMP",MIN(Method_input!D37,MAX(Method_input!D38,Method_input!D39*Method_input!D9+Method_input!D40)),"-") -> 12.96 | E13: Formula (6) | F13: ϑC;dis;in;flw;req = min[ϑC;dis;flw;set;max;; max(ϑC;dis;flw;set;min ; fe × Je + DJoff)] | H13: Reference corrected
A14: Energy calculations
A15: Simplified Method
A16: energy really extracted by the from the thermal zone j=1 | B16: QC;zt;j | C16: kWh | D16: =MIN(Method_input!D10,IF(D25="-",IF(D23=0,0,Method_input!D10/D23*Method_input!D27),IF(D25=0,0,Method_input!D10/D25*Method_input!D27))) -> 67.42157092 | E16: Formula (7) | G16: Method output | H16: Reference corrected
A17: energy really extracted by the from the thermal zone j=2 | B17: QC;zt;j | C17: kWh | D17: =MIN(Method_input!D11,IF(D25="-",IF(D23=0,0,Method_input!D11/D23*Method_input!D27),IF(D25=0,0,Method_input!D11/D25*Method_input!D27))) -> 26.24690338 | E17: Formula (7) | G17: Method output | H17: Reference corrected
A18: energy really extracted by the from the thermal zone j=3 | B18: QC;zt;j | C18: kWh | D18: =MIN(Method_input!D12,IF(D25="-",IF(D23=0,0,Method_input!D12/D23*Method_input!D27),IF(D25=0,0,Method_input!D12/D25*Method_input!D27))) -> 54.60177164 | E18: Formula (7) | G18: Method output | H18: Reference corrected
A19: energy really extracted by the from the thermal zone j=4 | B19: QC;zt;j | C19: kWh | D19: =MIN(Method_input!D13,IF(D25="-",IF(D23=0,0,Method_input!D13/D23*Method_input!D27),IF(D25=0,0,Method_input!D13/D25*Method_input!D27))) -> 20.02640116 | E19: Formula (7) | G19: Method output | H19: Reference corrected
A20: energy really extracted by the from the air handling unit k=1 | B20: QC;ahu;k;out | C20: kWh | D20: =IF(Process_design_data!C9="DX",MIN(Method_input!D14,IF(D25="-",IF(D23=0,0,Method_input!D14/D23*Method_input!D27),IF(D25=0,0,Method_input!D14/D25*Method_input!D27))),"-") -> 0 | E20: Formula (8) | G20: Method output | H20: Reference corrected
A21: energy really extracted by the from the air handling unit k=2 | B21: QC;ahu;k;out | C21: kWh | D21: =IF(Process_design_data!C9="DX",MIN(Method_input!D15,IF(D25="-",IF(D23=0,0,Method_input!D15/D23*Method_input!D27),IF(D25=0,0,Method_input!D15/D25*Method_input!D27))),"-") -> 0 | E21: Formula (8) | G21: Method output | H21: Reference corrected
A22: DX systems
A23: energy to be extracted by the cooling generation system for DX systems | B23: QC;gen;in;req | C23: kWh | D23: =IF(Process_design_data!C9="DX",Method_input!D10+Method_input!D11+Method_input!D12+Method_input!D13+Method_input!D17+Method_input!D18+Method_input!D19+Method_input!D20+Method_input!D14+Method_input!D15,"-") -> 176.7114795 | E23: Formula (9) | G23: Method output | H23: Formula and reference corrected
A24: Water based systems
A25: Energy to be extracted by the cooling generation system | B25: QC;gen;in;req | C25: kWh | D25: =IF(Process_design_data!C9="DX","-",Method_input!D10+Method_input!D11+Method_input!D17+Method_input!D18+Method_input!D14+Method_input!D12+Method_input!D13+Method_input!D19+Method_input!D20+Method_input!D15+D26+Method_input!D26*D27) -> - | E25: Formula (10) | H25: Reference corrected
A26: cooling distribution heat losses | B26: QC;ls;dis | C26: kWh | D26: =IF(Process_design_data!C9="DX","-",Method_input!D41*(Method_input!D10+Method_input!D11+Method_input!D17+Method_input!D18+Method_input!D14+Method_input!D12+Method_input!D13+Method_input!D19+Method_input!D20+Method_input!D15)) -> - | E26: Formula (11) | H26: Reference corrected
A27: cooling auxiliary energy | B27: WC;aux;dis | C27: kWh | D27: =IF(Process_design_data!C9="DX","-",Method_input!D42*(Method_input!D10+Method_input!D11+Method_input!D17+Method_input!D18+Method_input!D14+Method_input!D12+Method_input!D13+Method_input!D19+Method_input!D20+Method_input!D15)) -> - | E27: Formula (12) | G27: Method output | H27: Reference corrected
A28: Performance expression calculations
A29: annual efficiency of the total cooling system | B29: hC;tot;an | C29: - | D29: =Output_series!Q20/Output_series!R20 -> 3.669724771 | E29: Formula (37) | H29: Reference corrected
A30: total auxiliary energy for the cooling emission | B30: WC;aux;em | C30: kWh | D30: =Method_input!D21+Method_input!D22+Method_input!D23+Method_input!D24 -> 1.682966471 | E30: Formula (38) | G30: Method output | H30: Reference corrected
A31: annual efficiency of the cooling generation system | B31: hC;gen;an | C31: - | D31: =Input_series!X16/Output_series!S20 -> 4 | E31: Formula (28) | G31: Method output | H31: Reference corrected; wrong formu-la number in the standard, should be (40)

Sheet Method_output
A1: THIS IS A MANDATORY SHEET Output of one step calculation shall be indicated here. Each cell in the column value shall be a reference to a single cell in the "Method_calculation" sheet. The macro will take the calculation step results and fill the values table in the "Output_series" sheet.
A9: Name | B9: Symbol | C9: Unit | D9: Value | E9: Intended destination | F9: Notes
A10: Electric energy input to the cooling generation | B10: EC;gen;el;in | C10: kWh | D10: =Method_input!D29 -> 44.17786987 | E10: M1-9
A11: Auxiliary energy for the cooling emission | B11: WC;aux;em | C11: kWh | D11: =Method_calculation!D30 -> 1.682966471 | E11: M1-9
A12: Auxiliary energy for the cooling distribution | B12: WC;aux;dis | C12: kWh | D12: =IF(Method_calculation!D27<>"-",Method_calculation!D27,0) -> 0 | E12: M1-9
A13: Auxiliary energy of the cooling generation | B13: WC;aux;gen | C13: kWh | D13: =Method_input!D31 -> 0 | E13: M1-9
A14: Cooling energy extracted from thermal zone j=1 | B14: QC;out;zt,j | C14: kWh | D14: =Method_calculation!D16 -> 67.42157092 | E14: M2-2, M4-5
A15: Cooling energy extracted from thermal zone j=2 | B15: QC;out;zt,j | C15: kWh | D15: =Method_calculation!D17 -> 26.24690338 | E15: M2-2, M4-5
A16: Cooling energy extracted from thermal zone j=3 | B16: QC;out;zt,j | C16: kWh | D16: =Method_calculation!D18 -> 54.60177164 | E16: M2-2, M4-5
A17: Cooling energy extracted from thermal zone j=4 | B17: QC;out;zt,j | C17: kWh | D17: =Method_calculation!D19 -> 20.02640116 | E17: M2-2, M4-5
A18: Required coolinig generation outlet temperature | B18: ϑC;gen:out;req | C18: °C | D18: =IF(Method_calculation!D6<>"-",Method_calculation!D6,IF(Method_calculation!D7<>"-",Method_calculation!D7,IF(Method_calculation!D9<>"-",Method_calculation!D9,Method_calculation!D10))) -> 16 | E18: M4-8
A19: Required cooling energy by the cooling generation system | B19: QC;gen;in;req | C19: kWh | D19: =IF(Method_calculation!D23="-",Method_calculation!D25,Method_calculation!D23) -> 176.7114795 | E19: M4-8
A20: AHU cooling coil output for ventilation system k=1 | B20: QC;ahu;out;k | C20: kWh | D20: =Method_calculation!D20 -> 0 | E20: M5-8
A21: AHU cooling coil output for ventilation system k=2 | B21: QC;ahu;out;k | C21: kWh | D21: =Method_calculation!D21 -> 0 | E21: M5-8
A22: Performance expression
A23: annual efficiency of the total cooling system | B23: hC;tot;an | C23: - | D23: =Method_calculation!D29 -> 3.669724771
A24: annual efficiency of the cooling generation system | B24: hC;gen;an | C24: - | D24: =Method_calculation!D31 -> 4

Sheet Output_series
A1: Here a time series can be generated to test the method with variable input data. Data input series must be inserted in the "input_series" sheet before.
A3: Time series for data output
A4: Settings
A5: Number of output data | C5: 12
A7: This sheet will be filled automatically by a macro which will scan the "input_series" and perform the calculation defined in the "Method_calculation" sheet for each calculation interval. | M7: Calculation intervals to be processed
A8: Press "Clear output data" to reset output series | L8: First calculation interval | N8: 1
A9: Select the calculation intervals to process (first one and number, last is calculated) | L9: Number of calculation intervals | N9: 12
A10: Press "Run calculation" to start calculation of individual time steps | L10: Last calculation interval | N10: =+N9+N8-1 -> 12
B13: Month | C13: Day of month | D13: Hour of day | E13: Electric energy input to the cooling generation | F13: Auxiliary energy for the cooling emission | G13: Auxiliary energy for the cooling distribution | H13: Auxiliary energy of the cooling generation | I13: Cooling energy extracted from thermal zone j=1 | J13: Cooling energy extracted from thermal zone j=2 | K13: Cooling energy extracted from thermal zone j=3 | L13: Cooling energy extracted from thermal zone j=4 | M13: Required coolinig generation outlet temperature | N13: Required cooling energy by the cooling generation system | O13: AHU cooling coil output for ventilation system k=1 | P13: AHU cooling coil output for ventilation system k=2
E14: EC;gen;el;in | F14: WC;aux;em | G14: WC;aux;dis | H14: WC;aux;gen | I14: QC;out;zt,j | J14: QC;out;zt,j | K14: QC;out;zt,j | L14: QC;out;zt,j | M14: ϑC;gen:out;req | N14: QC;gen;in;req | O14: QC;ahu;out;k | P14: QC;ahu;out;k
A15: Symbol | E15: kWh | F15: kWh | G15: kWh | H15: kWh | I15: kWh | J15: kWh | K15: kWh | L15: kWh | M15: °C | N15: kWh | O15: kWh | P15: kWh
A16: Destination | E16: M1-9 | F16: M1-9 | G16: M1-9 | H16: M1-9 | I16: M2-2, M4-5 | J16: M2-2, M4-5 | K16: M2-2, M4-5 | L16: M2-2, M4-5 | M16: M4-8 | N16: M4-8 | O16: M5-8 | P16: M5-8 | Q16: Data for calculation of annual efficiencies
A17: MAX | E17: =MAX(E$22:E$10021) -> 60.71621339 | F17: 2.312998605 | G17: 0 | H17: =MAX(H$22:H$10021) -> 0 | I17: =MAX(I$22:I$10021) -> 110.977554 | J17: 26.24690338 | K17: 92.40697975 | L17: 22.00563783 | M17: 0.5 | N17: 242.8648536 | O17: 0 | P17: 0
A18: MIN | E18: =MIN(E$22:E$10021) -> 0 | F18: 0 | G18: 0 | H18: =MIN(H$22:H$10021) -> 0 | I18: =MIN(I$22:I$10021) -> 0 | J18: 0 | K18: 0 | L18: 0 | M18: 0.5 | N18: 0 | O18: 0 | P18: 0
A19: AVG | E19: =IFERROR(AVERAGE(E$22:E$10021),"") -> 12.92171905 | F19: 0.4922559638 | G19: 0 | H19: =IFERROR(AVERAGE(H$22:H$10021),"") -> 0 | I19: =IFERROR(AVERAGE(I$22:I$10021),"") -> 21.12477892 | J19: 5.680898805 | K19: 17.9512962 | L19: 4.468622451 | M19: 0.5 | N19: 51.6868762 | O19: 0 | P19: 0
A20: TOT | E20: =SUM(E$22:E$10021) -> 155.0606286 | F20: 5.907071566 | G20: 0 | H20: =SUM(H$22:H$10021) -> 0 | I20: =SUM(I$22:I$10021) -> 253.4973471 | J20: 68.17078567 | K20: 215.4155544 | L20: 53.62346942 | M20: 6 | N20: 620.2425144 | O20: 0 | P20: 0 | Q20: =SUM(I20:L20,O20:P20) -> 590.7071566 | R20: =Method_input!$D$44*E20+Method_input!$D$43*Input_series!AA16+Method_input!$D$44*F20+Method_input!$D$44*G20+Method_input!$D$44*H20 -> 160.9677002 | S20: =Method_input!$D$44*E20+Method_input!$D$43*Input_series!AA16+Method_input!$D$44*H20 -> 155.0606286
A21: Time stamp
A22: 1 | B22: =IF(Input_series!B18="","",Input_series!B18) -> 1 | C22: =IF(Input_series!C18="","",Input_series!C18) ->  | D22: =IF(Input_series!D18="","",Input_series!D18) ->  | E22: 0 | F22: 0 | G22: 0 | H22: 0 | I22: 0 | J22: 0 | K22: 0 | L22: 0 | M22: 0.5 | N22: 0 | O22: 0 | P22: 0 | S22: 0.01953125
A23: 2 | B23: =IF(Input_series!B19="","",Input_series!B19) -> 2 | C23: =IF(Input_series!C19="","",Input_series!C19) ->  | D23: =IF(Input_series!D19="","",Input_series!D19) ->  | E23: 0 | F23: 0 | G23: 0 | H23: 0 | I23: 0 | J23: 0 | K23: 0 | L23: 0 | M23: 0.5 | N23: 0 | O23: 0 | P23: 0 | S23: 0
A24: 3 | B24: =IF(Input_series!B20="","",Input_series!B20) -> 3 | C24: =IF(Input_series!C20="","",Input_series!C20) ->  | D24: =IF(Input_series!D20="","",Input_series!D20) ->  | E24: 0 | F24: 0 | G24: 0 | H24: 0 | I24: 0 | J24: 0 | K24: 0 | L24: 0 | M24: 0.5 | N24: 0 | O24: 0 | P24: 0 | S24: 0.0078125
A25: 4 | B25: =IF(Input_series!B21="","",Input_series!B21) -> 4 | C25: =IF(Input_series!C21="","",Input_series!C21) ->  | D25: =IF(Input_series!D21="","",Input_series!D21) ->  | E25: 0 | F25: 0 | G25: 0 | H25: 0 | I25: 0 | J25: 0 | K25: 0 | L25: 0 | M25: 0.5 | N25: 0 | O25: 0 | P25: 0 | S25: 0.01171875
A26: 5 | B26: =IF(Input_series!B22="","",Input_series!B22) -> 5 | C26: =IF(Input_series!C22="","",Input_series!C22) ->  | D26: =IF(Input_series!D22="","",Input_series!D22) ->  | E26: 0.2050557169 | F26: 0.00781164636 | G26: 0 | H26: 0 | I26: 0.41858804 | J26: 0 | K26: 0.362576596 | L26: 0 | M26: 0.5 | N26: 0.8202228678 | O26: 0 | P26: 0 | S26: 0
A27: 6 | B27: =IF(Input_series!B23="","",Input_series!B23) -> 6 | C27: =IF(Input_series!C23="","",Input_series!C23) ->  | D27: =IF(Input_series!D23="","",Input_series!D23) ->  | E27: 60.71621339 | F27: 2.312998605 | G27: 0 | H27: 0 | I27: 110.977554 | J27: 16.32389642 | K27: 92.40697975 | L27: 11.59143043 | M27: 0.5 | N27: 242.8648536 | O27: 0 | P27: 0 | S27: 0.0078125
A28: 7 | B28: =IF(Input_series!B24="","",Input_series!B24) -> 7 | C28: =IF(Input_series!C24="","",Input_series!C24) ->  | D28: =IF(Input_series!D24="","",Input_series!D24) ->  | E28: 48.96860666 | F28: 1.86547073 | G28: 0 | H28: 0 | I28: 72.81108018 | J28: 25.59998586 | K28: 66.13036914 | L28: 22.00563783 | M28: 0.5 | N28: 195.8744267 | O28: 0 | P28: 0 | S28: 0
A29: 8 | B29: =IF(Input_series!B25="","",Input_series!B25) -> 8 | C29: =IF(Input_series!C25="","",Input_series!C25) ->  | D29: =IF(Input_series!D25="","",Input_series!D25) ->  | E29: 44.17786987 | F29: 1.682966471 | G29: 0 | H29: 0 | I29: 67.42157092 | J29: 26.24690338 | K29: 54.60177164 | L29: 20.02640116 | M29: 0.5 | N29: 176.7114795 | O29: 0 | P29: 0 | S29: 0.01171875
A30: 9 | B30: =IF(Input_series!B26="","",Input_series!B26) -> 9 | C30: =IF(Input_series!C26="","",Input_series!C26) ->  | D30: =IF(Input_series!D26="","",Input_series!D26) ->  | E30: 0.9928829615 | F30: 0.03782411282 | G30: 0 | H30: 0 | I30: 1.868553972 | J30: 0 | K30: 1.91385731 | L30: 0 | M30: 0.5 | N30: 3.971531846 | O30: 0 | P30: 0 | S30: 0.0078125
A31: 10 | B31: =IF(Input_series!B27="","",Input_series!B27) -> 10 | C31: =IF(Input_series!C27="","",Input_series!C27) ->  | D31: =IF(Input_series!D27="","",Input_series!D27) ->  | E31: 0 | F31: 0 | G31: 0 | H31: 0 | I31: 0 | J31: 0 | K31: 0 | L31: 0 | M31: 0.5 | N31: 0 | O31: 0 | P31: 0 | S31: 0
A32: 11 | B32: =IF(Input_series!B28="","",Input_series!B28) -> 11 | C32: =IF(Input_series!C28="","",Input_series!C28) ->  | D32: =IF(Input_series!D28="","",Input_series!D28) ->  | E32: 0 | F32: 0 | G32: 0 | H32: 0 | I32: 0 | J32: 0 | K32: 0 | L32: 0 | M32: 0.5 | N32: 0 | O32: 0 | P32: 0 | S32: 0.01171875
A33: 12 | B33: =IF(Input_series!B29="","",Input_series!B29) -> 12 | C33: =IF(Input_series!C29="","",Input_series!C29) ->  | D33: =IF(Input_series!D29="","",Input_series!D29) ->  | E33: 0 | F33: 0 | G33: 0 | H33: 0 | I33: 0 | J33: 0 | K33: 0 | L33: 0 | M33: 0.5 | N33: 0 | O33: 0 | P33: 0 | S33: 0
A34: 13 | B34: =IF(Input_series!B30="","",Input_series!B30) ->  | C34: =IF(Input_series!C30="","",Input_series!C30) ->  | D34: =IF(Input_series!D30="","",Input_series!D30) -> 
A35: 14 | B35: =IF(Input_series!B31="","",Input_series!B31) ->  | C35: =IF(Input_series!C31="","",Input_series!C31) ->  | D35: =IF(Input_series!D31="","",Input_series!D31) -> 
A36: 15 | B36: =IF(Input_series!B32="","",Input_series!B32) ->  | C36: =IF(Input_series!C32="","",Input_series!C32) ->  | D36: =IF(Input_series!D32="","",Input_series!D32) -> 
A37: 16 | B37: =IF(Input_series!B33="","",Input_series!B33) ->  | C37: =IF(Input_series!C33="","",Input_series!C33) ->  | D37: =IF(Input_series!D33="","",Input_series!D33) -> 
A38: 17 | B38: =IF(Input_series!B34="","",Input_series!B34) ->  | C38: =IF(Input_series!C34="","",Input_series!C34) ->  | D38: =IF(Input_series!D34="","",Input_series!D34) -> 
A39: 18 | B39: =IF(Input_series!B35="","",Input_series!B35) ->  | C39: =IF(Input_series!C35="","",Input_series!C35) ->  | D39: =IF(Input_series!D35="","",Input_series!D35) -> 
A40: 19 | B40: =IF(Input_series!B36="","",Input_series!B36) ->  | C40: =IF(Input_series!C36="","",Input_series!C36) ->  | D40: =IF(Input_series!D36="","",Input_series!D36) -> 
A41: 20 | B41: =IF(Input_series!B37="","",Input_series!B37) ->  | C41: =IF(Input_series!C37="","",Input_series!C37) ->  | D41: =IF(Input_series!D37="","",Input_series!D37) -> 
A42: 21 | B42: =IF(Input_series!B38="","",Input_series!B38) ->  | C42: =IF(Input_series!C38="","",Input_series!C38) ->  | D42: =IF(Input_series!D38="","",Input_series!D38) -> 
A43: 22 | B43: =IF(Input_series!B39="","",Input_series!B39) ->  | C43: =IF(Input_series!C39="","",Input_series!C39) ->  | D43: =IF(Input_series!D39="","",Input_series!D39) -> 
A44: 23 | B44: =IF(Input_series!B40="","",Input_series!B40) ->  | C44: =IF(Input_series!C40="","",Input_series!C40) ->  | D44: =IF(Input_series!D40="","",Input_series!D40) -> 
A45: 24 | B45: =IF(Input_series!B41="","",Input_series!B41) ->  | C45: =IF(Input_series!C41="","",Input_series!C41) ->  | D45: =IF(Input_series!D41="","",Input_series!D41) -> 
A46: 25 | B46: =IF(Input_series!B42="","",Input_series!B42) ->  | C46: =IF(Input_series!C42="","",Input_series!C42) ->  | D46: =IF(Input_series!D42="","",Input_series!D42) -> 
A47: 26 | B47: =IF(Input_series!B43="","",Input_series!B43) ->  | C47: =IF(Input_series!C43="","",Input_series!C43) ->  | D47: =IF(Input_series!D43="","",Input_series!D43) -> 
A48: 27 | B48: =IF(Input_series!B44="","",Input_series!B44) ->  | C48: =IF(Input_series!C44="","",Input_series!C44) ->  | D48: =IF(Input_series!D44="","",Input_series!D44) -> 
A49: 28 | B49: =IF(Input_series!B45="","",Input_series!B45) ->  | C49: =IF(Input_series!C45="","",Input_series!C45) ->  | D49: =IF(Input_series!D45="","",Input_series!D45) -> 
A50: 29 | B50: =IF(Input_series!B46="","",Input_series!B46) ->  | C50: =IF(Input_series!C46="","",Input_series!C46) ->  | D50: =IF(Input_series!D46="","",Input_series!D46) -> 
A51: 30 | B51: =IF(Input_series!B47="","",Input_series!B47) ->  | C51: =IF(Input_series!C47="","",Input_series!C47) ->  | D51: =IF(Input_series!D47="","",Input_series!D47) -> 
A52: 31 | B52: =IF(Input_series!B48="","",Input_series!B48) ->  | C52: =IF(Input_series!C48="","",Input_series!C48) ->  | D52: =IF(Input_series!D48="","",Input_series!D48) -> 
A53: 32 | B53: =IF(Input_series!B49="","",Input_series!B49) ->  | C53: =IF(Input_series!C49="","",Input_series!C49) ->  | D53: =IF(Input_series!D49="","",Input_series!D49) -> 
A54: 33 | B54: =IF(Input_series!B50="","",Input_series!B50) ->  | C54: =IF(Input_series!C50="","",Input_series!C50) ->  | D54: =IF(Input_series!D50="","",Input_series!D50) -> 
A55: 34 | B55: =IF(Input_series!B51="","",Input_series!B51) ->  | C55: =IF(Input_series!C51="","",Input_series!C51) ->  | D55: =IF(Input_series!D51="","",Input_series!D51) -> 
A56: 35 | B56: =IF(Input_series!B52="","",Input_series!B52) ->  | C56: =IF(Input_series!C52="","",Input_series!C52) ->  | D56: =IF(Input_series!D52="","",Input_series!D52) -> 
A57: 36 | B57: =IF(Input_series!B53="","",Input_series!B53) ->  | C57: =IF(Input_series!C53="","",Input_series!C53) ->  | D57: =IF(Input_series!D53="","",Input_series!D53) -> 
A58: 37 | B58: =IF(Input_series!B54="","",Input_series!B54) ->  | C58: =IF(Input_series!C54="","",Input_series!C54) ->  | D58: =IF(Input_series!D54="","",Input_series!D54) -> 
A59: 38 | B59: =IF(Input_series!B55="","",Input_series!B55) ->  | C59: =IF(Input_series!C55="","",Input_series!C55) ->  | D59: =IF(Input_series!D55="","",Input_series!D55) -> 
A60: 39 | B60: =IF(Input_series!B56="","",Input_series!B56) ->  | C60: =IF(Input_series!C56="","",Input_series!C56) ->  | D60: =IF(Input_series!D56="","",Input_series!D56) -> 
A61: 40 | B61: =IF(Input_series!B57="","",Input_series!B57) ->  | C61: =IF(Input_series!C57="","",Input_series!C57) ->  | D61: =IF(Input_series!D57="","",Input_series!D57) -> 
A62: 41 | B62: =IF(Input_series!B58="","",Input_series!B58) ->  | C62: =IF(Input_series!C58="","",Input_series!C58) ->  | D62: =IF(Input_series!D58="","",Input_series!D58) -> 
A63: 42 | B63: =IF(Input_series!B59="","",Input_series!B59) ->  | C63: =IF(Input_series!C59="","",Input_series!C59) ->  | D63: =IF(Input_series!D59="","",Input_series!D59) -> 
A64: 43 | B64: =IF(Input_series!B60="","",Input_series!B60) ->  | C64: =IF(Input_series!C60="","",Input_series!C60) ->  | D64: =IF(Input_series!D60="","",Input_series!D60) -> 
A65: 44 | B65: =IF(Input_series!B61="","",Input_series!B61) ->  | C65: =IF(Input_series!C61="","",Input_series!C61) ->  | D65: =IF(Input_series!D61="","",Input_series!D61) -> 
A66: 45 | B66: =IF(Input_series!B62="","",Input_series!B62) ->  | C66: =IF(Input_series!C62="","",Input_series!C62) ->  | D66: =IF(Input_series!D62="","",Input_series!D62) -> 
A67: 46 | B67: =IF(Input_series!B63="","",Input_series!B63) ->  | C67: =IF(Input_series!C63="","",Input_series!C63) ->  | D67: =IF(Input_series!D63="","",Input_series!D63) -> 
A68: 47 | B68: =IF(Input_series!B64="","",Input_series!B64) ->  | C68: =IF(Input_series!C64="","",Input_series!C64) ->  | D68: =IF(Input_series!D64="","",Input_series!D64) -> 
A69: 48 | B69: =IF(Input_series!B65="","",Input_series!B65) ->  | C69: =IF(Input_series!C65="","",Input_series!C65) ->  | D69: =IF(Input_series!D65="","",Input_series!D65) -> 
A70: 49 | B70: =IF(Input_series!B66="","",Input_series!B66) ->  | C70: =IF(Input_series!C66="","",Input_series!C66) ->  | D70: =IF(Input_series!D66="","",Input_series!D66) -> 
A71: 50 | B71: =IF(Input_series!B67="","",Input_series!B67) ->  | C71: =IF(Input_series!C67="","",Input_series!C67) ->  | D71: =IF(Input_series!D67="","",Input_series!D67) -> 
A72: 51 | B72: =IF(Input_series!B68="","",Input_series!B68) ->  | C72: =IF(Input_series!C68="","",Input_series!C68) ->  | D72: =IF(Input_series!D68="","",Input_series!D68) -> 
A73: 52 | B73: =IF(Input_series!B69="","",Input_series!B69) ->  | C73: =IF(Input_series!C69="","",Input_series!C69) ->  | D73: =IF(Input_series!D69="","",Input_series!D69) -> 
A74: 53 | B74: =IF(Input_series!B70="","",Input_series!B70) ->  | C74: =IF(Input_series!C70="","",Input_series!C70) ->  | D74: =IF(Input_series!D70="","",Input_series!D70) -> 
A75: 54 | B75: =IF(Input_series!B71="","",Input_series!B71) ->  | C75: =IF(Input_series!C71="","",Input_series!C71) ->  | D75: =IF(Input_series!D71="","",Input_series!D71) -> 
A76: 55 | B76: =IF(Input_series!B72="","",Input_series!B72) ->  | C76: =IF(Input_series!C72="","",Input_series!C72) ->  | D76: =IF(Input_series!D72="","",Input_series!D72) -> 
A77: 56 | B77: =IF(Input_series!B73="","",Input_series!B73) ->  | C77: =IF(Input_series!C73="","",Input_series!C73) ->  | D77: =IF(Input_series!D73="","",Input_series!D73) -> 
A78: 57 | B78: =IF(Input_series!B74="","",Input_series!B74) ->  | C78: =IF(Input_series!C74="","",Input_series!C74) ->  | D78: =IF(Input_series!D74="","",Input_series!D74) -> 
A79: 58 | B79: =IF(Input_series!B75="","",Input_series!B75) ->  | C79: =IF(Input_series!C75="","",Input_series!C75) ->  | D79: =IF(Input_series!D75="","",Input_series!D75) -> 
A80: 59 | B80: =IF(Input_series!B76="","",Input_series!B76) ->  | C80: =IF(Input_series!C76="","",Input_series!C76) ->  | D80: =IF(Input_series!D76="","",Input_series!D76) -> 
A81: 60 | B81: =IF(Input_series!B77="","",Input_series!B77) ->  | C81: =IF(Input_series!C77="","",Input_series!C77) ->  | D81: =IF(Input_series!D77="","",Input_series!D77) -> 
A82: 61 | B82: =IF(Input_series!B78="","",Input_series!B78) ->  | C82: =IF(Input_series!C78="","",Input_series!C78) ->  | D82: =IF(Input_series!D78="","",Input_series!D78) -> 
A83: 62 | B83: =IF(Input_series!B79="","",Input_series!B79) ->  | C83: =IF(Input_series!C79="","",Input_series!C79) ->  | D83: =IF(Input_series!D79="","",Input_series!D79) -> 
A84: 63 | B84: =IF(Input_series!B80="","",Input_series!B80) ->  | C84: =IF(Input_series!C80="","",Input_series!C80) ->  | D84: =IF(Input_series!D80="","",Input_series!D80) -> 
A85: 64 | B85: =IF(Input_series!B81="","",Input_series!B81) ->  | C85: =IF(Input_series!C81="","",Input_series!C81) ->  | D85: =IF(Input_series!D81="","",Input_series!D81) -> 
A86: 65 | B86: =IF(Input_series!B82="","",Input_series!B82) ->  | C86: =IF(Input_series!C82="","",Input_series!C82) ->  | D86: =IF(Input_series!D82="","",Input_series!D82) -> 
A87: 66 | B87: =IF(Input_series!B83="","",Input_series!B83) ->  | C87: =IF(Input_series!C83="","",Input_series!C83) ->  | D87: =IF(Input_series!D83="","",Input_series!D83) -> 
A88: 67 | B88: =IF(Input_series!B84="","",Input_series!B84) ->  | C88: =IF(Input_series!C84="","",Input_series!C84) ->  | D88: =IF(Input_series!D84="","",Input_series!D84) -> 
A89: 68 | B89: =IF(Input_series!B85="","",Input_series!B85) ->  | C89: =IF(Input_series!C85="","",Input_series!C85) ->  | D89: =IF(Input_series!D85="","",Input_series!D85) -> 
A90: 69 | B90: =IF(Input_series!B86="","",Input_series!B86) ->  | C90: =IF(Input_series!C86="","",Input_series!C86) ->  | D90: =IF(Input_series!D86="","",Input_series!D86) -> 
A91: 70 | B91: =IF(Input_series!B87="","",Input_series!B87) ->  | C91: =IF(Input_series!C87="","",Input_series!C87) ->  | D91: =IF(Input_series!D87="","",Input_series!D87) -> 
A92: 71 | B92: =IF(Input_series!B88="","",Input_series!B88) ->  | C92: =IF(Input_series!C88="","",Input_series!C88) ->  | D92: =IF(Input_series!D88="","",Input_series!D88) -> 
A93: 72 | B93: =IF(Input_series!B89="","",Input_series!B89) ->  | C93: =IF(Input_series!C89="","",Input_series!C89) ->  | D93: =IF(Input_series!D89="","",Input_series!D89) -> 
A94: 73 | B94: =IF(Input_series!B90="","",Input_series!B90) ->  | C94: =IF(Input_series!C90="","",Input_series!C90) ->  | D94: =IF(Input_series!D90="","",Input_series!D90) -> 
A95: 74 | B95: =IF(Input_series!B91="","",Input_series!B91) ->  | C95: =IF(Input_series!C91="","",Input_series!C91) ->  | D95: =IF(Input_series!D91="","",Input_series!D91) -> 
A96: 75 | B96: =IF(Input_series!B92="","",Input_series!B92) ->  | C96: =IF(Input_series!C92="","",Input_series!C92) ->  | D96: =IF(Input_series!D92="","",Input_series!D92) -> 
A97: 76 | B97: =IF(Input_series!B93="","",Input_series!B93) ->  | C97: =IF(Input_series!C93="","",Input_series!C93) ->  | D97: =IF(Input_series!D93="","",Input_series!D93) -> 
A98: 77 | B98: =IF(Input_series!B94="","",Input_series!B94) ->  | C98: =IF(Input_series!C94="","",Input_series!C94) ->  | D98: =IF(Input_series!D94="","",Input_series!D94) -> 
A99: 78 | B99: =IF(Input_series!B95="","",Input_series!B95) ->  | C99: =IF(Input_series!C95="","",Input_series!C95) ->  | D99: =IF(Input_series!D95="","",Input_series!D95) -> 
A100: 79 | B100: =IF(Input_series!B96="","",Input_series!B96) ->  | C100: =IF(Input_series!C96="","",Input_series!C96) ->  | D100: =IF(Input_series!D96="","",Input_series!D96) -> 
A101: 80 | B101: =IF(Input_series!B97="","",Input_series!B97) ->  | C101: =IF(Input_series!C97="","",Input_series!C97) ->  | D101: =IF(Input_series!D97="","",Input_series!D97) -> 
A102: 81 | B102: =IF(Input_series!B98="","",Input_series!B98) ->  | C102: =IF(Input_series!C98="","",Input_series!C98) ->  | D102: =IF(Input_series!D98="","",Input_series!D98) -> 
A103: 82 | B103: =IF(Input_series!B99="","",Input_series!B99) ->  | C103: =IF(Input_series!C99="","",Input_series!C99) ->  | D103: =IF(Input_series!D99="","",Input_series!D99) -> 
A104: 83 | B104: =IF(Input_series!B100="","",Input_series!B100) ->  | C104: =IF(Input_series!C100="","",Input_series!C100) ->  | D104: =IF(Input_series!D100="","",Input_series!D100) -> 
A105: 84 | B105: =IF(Input_series!B101="","",Input_series!B101) ->  | C105: =IF(Input_series!C101="","",Input_series!C101) ->  | D105: =IF(Input_series!D101="","",Input_series!D101) -> 
A106: 85 | B106: =IF(Input_series!B102="","",Input_series!B102) ->  | C106: =IF(Input_series!C102="","",Input_series!C102) ->  | D106: =IF(Input_series!D102="","",Input_series!D102) -> 
A107: 86 | B107: =IF(Input_series!B103="","",Input_series!B103) ->  | C107: =IF(Input_series!C103="","",Input_series!C103) ->  | D107: =IF(Input_series!D103="","",Input_series!D103) -> 
A108: 87 | B108: =IF(Input_series!B104="","",Input_series!B104) ->  | C108: =IF(Input_series!C104="","",Input_series!C104) ->  | D108: =IF(Input_series!D104="","",Input_series!D104) -> 
A109: 88 | B109: =IF(Input_series!B105="","",Input_series!B105) ->  | C109: =IF(Input_series!C105="","",Input_series!C105) ->  | D109: =IF(Input_series!D105="","",Input_series!D105) -> 
A110: 89 | B110: =IF(Input_series!B106="","",Input_series!B106) ->  | C110: =IF(Input_series!C106="","",Input_series!C106) ->  | D110: =IF(Input_series!D106="","",Input_series!D106) -> 
A111: 90 | B111: =IF(Input_series!B107="","",Input_series!B107) ->  | C111: =IF(Input_series!C107="","",Input_series!C107) ->  | D111: =IF(Input_series!D107="","",Input_series!D107) -> 
A112: 91 | B112: =IF(Input_series!B108="","",Input_series!B108) ->  | C112: =IF(Input_series!C108="","",Input_series!C108) ->  | D112: =IF(Input_series!D108="","",Input_series!D108) -> 
A113: 92 | B113: =IF(Input_series!B109="","",Input_series!B109) ->  | C113: =IF(Input_series!C109="","",Input_series!C109) ->  | D113: =IF(Input_series!D109="","",Input_series!D109) -> 
A114: 93 | B114: =IF(Input_series!B110="","",Input_series!B110) ->  | C114: =IF(Input_series!C110="","",Input_series!C110) ->  | D114: =IF(Input_series!D110="","",Input_series!D110) -> 
A115: 94 | B115: =IF(Input_series!B111="","",Input_series!B111) ->  | C115: =IF(Input_series!C111="","",Input_series!C111) ->  | D115: =IF(Input_series!D111="","",Input_series!D111) -> 
A116: 95 | B116: =IF(Input_series!B112="","",Input_series!B112) ->  | C116: =IF(Input_series!C112="","",Input_series!C112) ->  | D116: =IF(Input_series!D112="","",Input_series!D112) -> 
A117: 96 | B117: =IF(Input_series!B113="","",Input_series!B113) ->  | C117: =IF(Input_series!C113="","",Input_series!C113) ->  | D117: =IF(Input_series!D113="","",Input_series!D113) -> 
A118: 97 | B118: =IF(Input_series!B114="","",Input_series!B114) ->  | C118: =IF(Input_series!C114="","",Input_series!C114) ->  | D118: =IF(Input_series!D114="","",Input_series!D114) -> 
A119: 98 | B119: =IF(Input_series!B115="","",Input_series!B115) ->  | C119: =IF(Input_series!C115="","",Input_series!C115) ->  | D119: =IF(Input_series!D115="","",Input_series!D115) -> 
A120: 99 | B120: =IF(Input_series!B116="","",Input_series!B116) ->  | C120: =IF(Input_series!C116="","",Input_series!C116) ->  | D120: =IF(Input_series!D116="","",Input_series!D116) -> 
A121: 100 | B121: =IF(Input_series!B117="","",Input_series!B117) ->  | C121: =IF(Input_series!C117="","",Input_series!C117) ->  | D121: =IF(Input_series!D117="","",Input_series!D117) -> 
A122: 101 | B122: =IF(Input_series!B118="","",Input_series!B118) ->  | C122: =IF(Input_series!C118="","",Input_series!C118) ->  | D122: =IF(Input_series!D118="","",Input_series!D118) -> 
A123: 102 | B123: =IF(Input_series!B119="","",Input_series!B119) ->  | C123: =IF(Input_series!C119="","",Input_series!C119) ->  | D123: =IF(Input_series!D119="","",Input_series!D119) -> 
A124: 103 | B124: =IF(Input_series!B120="","",Input_series!B120) ->  | C124: =IF(Input_series!C120="","",Input_series!C120) ->  | D124: =IF(Input_series!D120="","",Input_series!D120) -> 
A125: 104 | B125: =IF(Input_series!B121="","",Input_series!B121) ->  | C125: =IF(Input_series!C121="","",Input_series!C121) ->  | D125: =IF(Input_series!D121="","",Input_series!D121) -> 
A126: 105 | B126: =IF(Input_series!B122="","",Input_series!B122) ->  | C126: =IF(Input_series!C122="","",Input_series!C122) ->  | D126: =IF(Input_series!D122="","",Input_series!D122) -> 
A127: 106 | B127: =IF(Input_series!B123="","",Input_series!B123) ->  | C127: =IF(Input_series!C123="","",Input_series!C123) ->  | D127: =IF(Input_series!D123="","",Input_series!D123) -> 
A128: 107 | B128: =IF(Input_series!B124="","",Input_series!B124) ->  | C128: =IF(Input_series!C124="","",Input_series!C124) ->  | D128: =IF(Input_series!D124="","",Input_series!D124) -> 
A129: 108 | B129: =IF(Input_series!B125="","",Input_series!B125) ->  | C129: =IF(Input_series!C125="","",Input_series!C125) ->  | D129: =IF(Input_series!D125="","",Input_series!D125) -> 
A130: 109 | B130: =IF(Input_series!B126="","",Input_series!B126) ->  | C130: =IF(Input_series!C126="","",Input_series!C126) ->  | D130: =IF(Input_series!D126="","",Input_series!D126) -> 
A131: 110 | B131: =IF(Input_series!B127="","",Input_series!B127) ->  | C131: =IF(Input_series!C127="","",Input_series!C127) ->  | D131: =IF(Input_series!D127="","",Input_series!D127) -> 
A132: 111 | B132: =IF(Input_series!B128="","",Input_series!B128) ->  | C132: =IF(Input_series!C128="","",Input_series!C128) ->  | D132: =IF(Input_series!D128="","",Input_series!D128) -> 
A133: 112 | B133: =IF(Input_series!B129="","",Input_series!B129) ->  | C133: =IF(Input_series!C129="","",Input_series!C129) ->  | D133: =IF(Input_series!D129="","",Input_series!D129) -> 
A134: 113 | B134: =IF(Input_series!B130="","",Input_series!B130) ->  | C134: =IF(Input_series!C130="","",Input_series!C130) ->  | D134: =IF(Input_series!D130="","",Input_series!D130) -> 
A135: 114 | B135: =IF(Input_series!B131="","",Input_series!B131) ->  | C135: =IF(Input_series!C131="","",Input_series!C131) ->  | D135: =IF(Input_series!D131="","",Input_series!D131) -> 
A136: 115 | B136: =IF(Input_series!B132="","",Input_series!B132) ->  | C136: =IF(Input_series!C132="","",Input_series!C132) ->  | D136: =IF(Input_series!D132="","",Input_series!D132) -> 
A137: 116 | B137: =IF(Input_series!B133="","",Input_series!B133) ->  | C137: =IF(Input_series!C133="","",Input_series!C133) ->  | D137: =IF(Input_series!D133="","",Input_series!D133) -> 
A138: 117 | B138: =IF(Input_series!B134="","",Input_series!B134) ->  | C138: =IF(Input_series!C134="","",Input_series!C134) ->  | D138: =IF(Input_series!D134="","",Input_series!D134) -> 
A139: 118 | B139: =IF(Input_series!B135="","",Input_series!B135) ->  | C139: =IF(Input_series!C135="","",Input_series!C135) ->  | D139: =IF(Input_series!D135="","",Input_series!D135) -> 
A140: 119 | B140: =IF(Input_series!B136="","",Input_series!B136) ->  | C140: =IF(Input_series!C136="","",Input_series!C136) ->  | D140: =IF(Input_series!D136="","",Input_series!D136) -> 
A141: 120 | B141: =IF(Input_series!B137="","",Input_series!B137) ->  | C141: =IF(Input_series!C137="","",Input_series!C137) ->  | D141: =IF(Input_series!D137="","",Input_series!D137) -> 
A142: 121 | B142: =IF(Input_series!B138="","",Input_series!B138) ->  | C142: =IF(Input_series!C138="","",Input_series!C138) ->  | D142: =IF(Input_series!D138="","",Input_series!D138) -> 
A143: 122 | B143: =IF(Input_series!B139="","",Input_series!B139) ->  | C143: =IF(Input_series!C139="","",Input_series!C139) ->  | D143: =IF(Input_series!D139="","",Input_series!D139) -> 
A144: 123 | B144: =IF(Input_series!B140="","",Input_series!B140) ->  | C144: =IF(Input_series!C140="","",Input_series!C140) ->  | D144: =IF(Input_series!D140="","",Input_series!D140) -> 
A145: 124 | B145: =IF(Input_series!B141="","",Input_series!B141) ->  | C145: =IF(Input_series!C141="","",Input_series!C141) ->  | D145: =IF(Input_series!D141="","",Input_series!D141) -> 
A146: 125 | B146: =IF(Input_series!B142="","",Input_series!B142) ->  | C146: =IF(Input_series!C142="","",Input_series!C142) ->  | D146: =IF(Input_series!D142="","",Input_series!D142) -> 
A147: 126 | B147: =IF(Input_series!B143="","",Input_series!B143) ->  | C147: =IF(Input_series!C143="","",Input_series!C143) ->  | D147: =IF(Input_series!D143="","",Input_series!D143) -> 
A148: 127 | B148: =IF(Input_series!B144="","",Input_series!B144) ->  | C148: =IF(Input_series!C144="","",Input_series!C144) ->  | D148: =IF(Input_series!D144="","",Input_series!D144) -> 
A149: 128 | B149: =IF(Input_series!B145="","",Input_series!B145) ->  | C149: =IF(Input_series!C145="","",Input_series!C145) ->  | D149: =IF(Input_series!D145="","",Input_series!D145) -> 
A150: 129 | B150: =IF(Input_series!B146="","",Input_series!B146) ->  | C150: =IF(Input_series!C146="","",Input_series!C146) ->  | D150: =IF(Input_series!D146="","",Input_series!D146) -> 
A151: 130 | B151: =IF(Input_series!B147="","",Input_series!B147) ->  | C151: =IF(Input_series!C147="","",Input_series!C147) ->  | D151: =IF(Input_series!D147="","",Input_series!D147) -> 
A152: 131 | B152: =IF(Input_series!B148="","",Input_series!B148) ->  | C152: =IF(Input_series!C148="","",Input_series!C148) ->  | D152: =IF(Input_series!D148="","",Input_series!D148) -> 
A153: 132 | B153: =IF(Input_series!B149="","",Input_series!B149) ->  | C153: =IF(Input_series!C149="","",Input_series!C149) ->  | D153: =IF(Input_series!D149="","",Input_series!D149) -> 
A154: 133 | B154: =IF(Input_series!B150="","",Input_series!B150) ->  | C154: =IF(Input_series!C150="","",Input_series!C150) ->  | D154: =IF(Input_series!D150="","",Input_series!D150) -> 
A155: 134 | B155: =IF(Input_series!B151="","",Input_series!B151) ->  | C155: =IF(Input_series!C151="","",Input_series!C151) ->  | D155: =IF(Input_series!D151="","",Input_series!D151) -> 
A156: 135 | B156: =IF(Input_series!B152="","",Input_series!B152) ->  | C156: =IF(Input_series!C152="","",Input_series!C152) ->  | D156: =IF(Input_series!D152="","",Input_series!D152) -> 
A157: 136 | B157: =IF(Input_series!B153="","",Input_series!B153) ->  | C157: =IF(Input_series!C153="","",Input_series!C153) ->  | D157: =IF(Input_series!D153="","",Input_series!D153) -> 
A158: 137 | B158: =IF(Input_series!B154="","",Input_series!B154) ->  | C158: =IF(Input_series!C154="","",Input_series!C154) ->  | D158: =IF(Input_series!D154="","",Input_series!D154) -> 
A159: 138 | B159: =IF(Input_series!B155="","",Input_series!B155) ->  | C159: =IF(Input_series!C155="","",Input_series!C155) ->  | D159: =IF(Input_series!D155="","",Input_series!D155) -> 
A160: 139 | B160: =IF(Input_series!B156="","",Input_series!B156) ->  | C160: =IF(Input_series!C156="","",Input_series!C156) ->  | D160: =IF(Input_series!D156="","",Input_series!D156) -> 
A161: 140 | B161: =IF(Input_series!B157="","",Input_series!B157) ->  | C161: =IF(Input_series!C157="","",Input_series!C157) ->  | D161: =IF(Input_series!D157="","",Input_series!D157) -> 
A162: 141 | B162: =IF(Input_series!B158="","",Input_series!B158) ->  | C162: =IF(Input_series!C158="","",Input_series!C158) ->  | D162: =IF(Input_series!D158="","",Input_series!D158) -> 
A163: 142 | B163: =IF(Input_series!B159="","",Input_series!B159) ->  | C163: =IF(Input_series!C159="","",Input_series!C159) ->  | D163: =IF(Input_series!D159="","",Input_series!D159) -> 
A164: 143 | B164: =IF(Input_series!B160="","",Input_series!B160) ->  | C164: =IF(Input_series!C160="","",Input_series!C160) ->  | D164: =IF(Input_series!D160="","",Input_series!D160) -> 
A165: 144 | B165: =IF(Input_series!B161="","",Input_series!B161) ->  | C165: =IF(Input_series!C161="","",Input_series!C161) ->  | D165: =IF(Input_series!D161="","",Input_series!D161) -> 
A166: 145 | B166: =IF(Input_series!B162="","",Input_series!B162) ->  | C166: =IF(Input_series!C162="","",Input_series!C162) ->  | D166: =IF(Input_series!D162="","",Input_series!D162) -> 
A167: 146 | B167: =IF(Input_series!B163="","",Input_series!B163) ->  | C167: =IF(Input_series!C163="","",Input_series!C163) ->  | D167: =IF(Input_series!D163="","",Input_series!D163) -> 
A168: 147 | B168: =IF(Input_series!B164="","",Input_series!B164) ->  | C168: =IF(Input_series!C164="","",Input_series!C164) ->  | D168: =IF(Input_series!D164="","",Input_series!D164) -> 
A169: 148 | B169: =IF(Input_series!B165="","",Input_series!B165) ->  | C169: =IF(Input_series!C165="","",Input_series!C165) ->  | D169: =IF(Input_series!D165="","",Input_series!D165) -> 
A170: 149 | B170: =IF(Input_series!B166="","",Input_series!B166) ->  | C170: =IF(Input_series!C166="","",Input_series!C166) ->  | D170: =IF(Input_series!D166="","",Input_series!D166) -> 
A171: 150 | B171: =IF(Input_series!B167="","",Input_series!B167) ->  | C171: =IF(Input_series!C167="","",Input_series!C167) ->  | D171: =IF(Input_series!D167="","",Input_series!D167) -> 
A172: 151 | B172: =IF(Input_series!B168="","",Input_series!B168) ->  | C172: =IF(Input_series!C168="","",Input_series!C168) ->  | D172: =IF(Input_series!D168="","",Input_series!D168) -> 
A173: 152 | B173: =IF(Input_series!B169="","",Input_series!B169) ->  | C173: =IF(Input_series!C169="","",Input_series!C169) ->  | D173: =IF(Input_series!D169="","",Input_series!D169) -> 
A174: 153 | B174: =IF(Input_series!B170="","",Input_series!B170) ->  | C174: =IF(Input_series!C170="","",Input_series!C170) ->  | D174: =IF(Input_series!D170="","",Input_series!D170) -> 
A175: 154 | B175: =IF(Input_series!B171="","",Input_series!B171) ->  | C175: =IF(Input_series!C171="","",Input_series!C171) ->  | D175: =IF(Input_series!D171="","",Input_series!D171) -> 
A176: 155 | B176: =IF(Input_series!B172="","",Input_series!B172) ->  | C176: =IF(Input_series!C172="","",Input_series!C172) ->  | D176: =IF(Input_series!D172="","",Input_series!D172) -> 
A177: 156 | B177: =IF(Input_series!B173="","",Input_series!B173) ->  | C177: =IF(Input_series!C173="","",Input_series!C173) ->  | D177: =IF(Input_series!D173="","",Input_series!D173) -> 
A178: 157 | B178: =IF(Input_series!B174="","",Input_series!B174) ->  | C178: =IF(Input_series!C174="","",Input_series!C174) ->  | D178: =IF(Input_series!D174="","",Input_series!D174) -> 
A179: 158 | B179: =IF(Input_series!B175="","",Input_series!B175) ->  | C179: =IF(Input_series!C175="","",Input_series!C175) ->  | D179: =IF(Input_series!D175="","",Input_series!D175) -> 
A180: 159 | B180: =IF(Input_series!B176="","",Input_series!B176) ->  | C180: =IF(Input_series!C176="","",Input_series!C176) ->  | D180: =IF(Input_series!D176="","",Input_series!D176) -> 
A181: 160 | B181: =IF(Input_series!B177="","",Input_series!B177) ->  | C181: =IF(Input_series!C177="","",Input_series!C177) ->  | D181: =IF(Input_series!D177="","",Input_series!D177) -> 
A182: 161 | B182: =IF(Input_series!B178="","",Input_series!B178) ->  | C182: =IF(Input_series!C178="","",Input_series!C178) ->  | D182: =IF(Input_series!D178="","",Input_series!D178) -> 
A183: 162 | B183: =IF(Input_series!B179="","",Input_series!B179) ->  | C183: =IF(Input_series!C179="","",Input_series!C179) ->  | D183: =IF(Input_series!D179="","",Input_series!D179) -> 
A184: 163 | B184: =IF(Input_series!B180="","",Input_series!B180) ->  | C184: =IF(Input_series!C180="","",Input_series!C180) ->  | D184: =IF(Input_series!D180="","",Input_series!D180) -> 
A185: 164 | B185: =IF(Input_series!B181="","",Input_series!B181) ->  | C185: =IF(Input_series!C181="","",Input_series!C181) ->  | D185: =IF(Input_series!D181="","",Input_series!D181) -> 
A186: 165 | B186: =IF(Input_series!B182="","",Input_series!B182) ->  | C186: =IF(Input_series!C182="","",Input_series!C182) ->  | D186: =IF(Input_series!D182="","",Input_series!D182) -> 
A187: 166 | B187: =IF(Input_series!B183="","",Input_series!B183) ->  | C187: =IF(Input_series!C183="","",Input_series!C183) ->  | D187: =IF(Input_series!D183="","",Input_series!D183) -> 
A188: 167 | B188: =IF(Input_series!B184="","",Input_series!B184) ->  | C188: =IF(Input_series!C184="","",Input_series!C184) ->  | D188: =IF(Input_series!D184="","",Input_series!D184) -> 
A189: 168 | B189: =IF(Input_series!B185="","",Input_series!B185) ->  | C189: =IF(Input_series!C185="","",Input_series!C185) ->  | D189: =IF(Input_series!D185="","",Input_series!D185) -> 
A190: 169 | B190: =IF(Input_series!B186="","",Input_series!B186) ->  | C190: =IF(Input_series!C186="","",Input_series!C186) ->  | D190: =IF(Input_series!D186="","",Input_series!D186) -> 
A191: 170 | B191: =IF(Input_series!B187="","",Input_series!B187) ->  | C191: =IF(Input_series!C187="","",Input_series!C187) ->  | D191: =IF(Input_series!D187="","",Input_series!D187) -> 
A192: 171 | B192: =IF(Input_series!B188="","",Input_series!B188) ->  | C192: =IF(Input_series!C188="","",Input_series!C188) ->  | D192: =IF(Input_series!D188="","",Input_series!D188) -> 
A193: 172 | B193: =IF(Input_series!B189="","",Input_series!B189) ->  | C193: =IF(Input_series!C189="","",Input_series!C189) ->  | D193: =IF(Input_series!D189="","",Input_series!D189) -> 
A194: 173 | B194: =IF(Input_series!B190="","",Input_series!B190) ->  | C194: =IF(Input_series!C190="","",Input_series!C190) ->  | D194: =IF(Input_series!D190="","",Input_series!D190) -> 
A195: 174 | B195: =IF(Input_series!B191="","",Input_series!B191) ->  | C195: =IF(Input_series!C191="","",Input_series!C191) ->  | D195: =IF(Input_series!D191="","",Input_series!D191) -> 
A196: 175 | B196: =IF(Input_series!B192="","",Input_series!B192) ->  | C196: =IF(Input_series!C192="","",Input_series!C192) ->  | D196: =IF(Input_series!D192="","",Input_series!D192) -> 
A197: 176 | B197: =IF(Input_series!B193="","",Input_series!B193) ->  | C197: =IF(Input_series!C193="","",Input_series!C193) ->  | D197: =IF(Input_series!D193="","",Input_series!D193) -> 
A198: 177 | B198: =IF(Input_series!B194="","",Input_series!B194) ->  | C198: =IF(Input_series!C194="","",Input_series!C194) ->  | D198: =IF(Input_series!D194="","",Input_series!D194) -> 
A199: 178 | B199: =IF(Input_series!B195="","",Input_series!B195) ->  | C199: =IF(Input_series!C195="","",Input_series!C195) ->  | D199: =IF(Input_series!D195="","",Input_series!D195) -> 
A200: 179 | B200: =IF(Input_series!B196="","",Input_series!B196) ->  | C200: =IF(Input_series!C196="","",Input_series!C196) ->  | D200: =IF(Input_series!D196="","",Input_series!D196) -> 
A201: 180 | B201: =IF(Input_series!B197="","",Input_series!B197) ->  | C201: =IF(Input_series!C197="","",Input_series!C197) ->  | D201: =IF(Input_series!D197="","",Input_series!D197) -> 
A202: 181 | B202: =IF(Input_series!B198="","",Input_series!B198) ->  | C202: =IF(Input_series!C198="","",Input_series!C198) ->  | D202: =IF(Input_series!D198="","",Input_series!D198) -> 
A203: 182 | B203: =IF(Input_series!B199="","",Input_series!B199) ->  | C203: =IF(Input_series!C199="","",Input_series!C199) ->  | D203: =IF(Input_series!D199="","",Input_series!D199) -> 
A204: 183 | B204: =IF(Input_series!B200="","",Input_series!B200) ->  | C204: =IF(Input_series!C200="","",Input_series!C200) ->  | D204: =IF(Input_series!D200="","",Input_series!D200) -> 
... 9817 more rows

Sheet Graphs
A1: Energy flow data
A40: Operating conditions data
